bitfinex-derivatives/quotes_SOLF0:USTF0_20240816
["timestamp","ask_amount","ask_price","bid_price","bid_amount"]
[1723775468809,1.3418,143.01,142.93,33.64]
[1723775469405,1.3418,143.01,142.94,0.04530537]
[1723775469908,2.4473,143.0,142.95,2.4481]
[1723775470407,33.64,143.11,142.99,33.64]
[1723775470610,0.53665531,143.1,142.99,33.64]
[1723775470905,1.81565531,143.1,142.99,33.64]
[1723775471109,0.53665531,143.09,143.02,33.64]
[1723775471312,1.279,143.1,143.04,33.64]
[1723775472113,1.279,143.1,143.03,0.04638453]
[1723775472509,1.279,143.1,143.04,2.4464]
[1723775473004,1.279,143.1,143.03,0.04638453]
[1723775473607,34.919,143.1,143.03,0.04638453]
[1723775473909,5.78,143.09,143.03,0.04638453]
[1723775474808,1.279,143.1,143.04,33.64]
[1723775475903,5.78,143.16,143.08,33.64]
[1723775476103,0.5360931,143.15,143.08,33.64]
[1723775476307,2.4447,143.15,143.08,33.64]
[1723775476518,3.8834,143.19,143.11,33.64]
[1723775476710,0.53596338,143.18,143.1,0.04441967]
[1723775476906,2.4443,143.17,143.11,36.0852]
[1723775477214,3.8834,143.19,143.09,33.64]
[1723775477410,0.5359441,143.18,143.13,0.0500839]
[1723775477616,2.4448,143.14,143.13,0.0500839]
[1723775477908,3.8834,143.19,143.07,33.64]
[1723775478109,0.53601077,143.18,143.12,0.04683036]
[1723775479105,2.4448,143.14,143.12,0.04683036]
[1723775479521,34.979,143.31,143.13,39.42]
[1723775479814,2.4616,143.24,143.13,39.42]
[1723775480015,0.53539142,143.23,143.18,33.64]
[1723775480207,2.4616,143.28,143.19,5.78]
[1723775480410,0.53512378,143.27,143.19,5.78]
[1723775480613,2.4431,143.25,143.19,5.78]
[1723775480812,2.4616,143.28,143.19,5.82712732]
[1723775481117,2.4616,143.28,143.2,33.64]
[1723775481308,2.4616,143.28,143.23,33.64]
[1723775481505,2.4616,143.28,143.23,39.42]
[1723775481711,1.35,143.3,143.23,39.4714829]
[1723775481906,2.4616,143.34,143.29,33.64]
[1723775482106,1.3196,143.43,143.33,36.0814]
[1723775482318,0.53425693,143.42,143.33,33.64]
[1723775482511,0.53425693,143.42,143.3,33.64]
[1723775482812,0.53425693,143.42,143.33,33.64]
[1723775483113,0.53425693,143.42,143.36,0.04950313]
[1723775483315,34.17425693,143.42,143.36,0.04950313]
[1723775483620,0.53425693,143.41,143.36,0.04950313]
[1723775483807,3.8527,143.43,143.36,0.04950313]
[1723775483808,0.53425693,143.4,143.36,0.04950313]
[1723775484006,0.53425693,143.42,143.36,0.04950313]
[1723775484215,0.53425693,143.41,143.36,0.04950313]
[1723775484411,0.53425693,143.42,143.36,0.04950313]
[1723775484613,0.53425693,143.41,143.36,40.23950313]
[1723775484822,0.53425693,143.42,143.36,40.23950313]
[1723775485014,3.8527,143.43,143.36,40.23950313]
[1723775485421,3.8527,143.43,143.39,40.19]
[1723775485422,0.53379199,143.42,143.39,40.19]
[1723775485618,2.5331,143.43,143.39,40.19]
[1723775486325,1.2481,143.49,143.38,6.08]
[1723775486326,1.3466,143.48,143.41,40.19]
[1723775486622,0.53359319,143.47,143.41,40.19]
[1723775487120,0.53359319,143.47,143.41,46.27]
[1723775487615,40.19,143.56,143.41,46.27]
[1723775487616,6.08,143.61,143.46,40.19]
[1723775487816,44.59880661,143.6,143.46,46.27]
[1723775488024,0.53120661,143.59,143.46,40.19]
[1723775488224,0.53120661,143.58,143.48,40.19]
[1723775488421,0.53120661,143.57,143.51,40.19]
[1723775488616,0.53120661,143.59,143.47,2.4391]
[1723775488920,0.53120661,143.58,143.5,40.19]
[1723775489111,0.53120661,143.57,143.52,0.04961632]
[1723775489312,0.53120661,143.56,143.52,40.23961632]
[1723775489516,3.8776,143.6,143.52,40.23961632]
[1723775489816,0.49164409,143.59,143.52,40.23961632]
[1723775490018,0.49148691,143.58,143.52,0.04961632]
[1723775490324,3.8776,143.6,143.52,40.23961632]
[1723775490325,0.49148691,143.57,143.52,40.23961632]
[1723775490515,0.49148691,143.59,143.52,40.23961632]
[1723775490729,0.49148691,143.58,143.52,40.23961632]
[1723775491019,0.49148691,143.57,143.52,40.23961632]
[1723775491224,0.49148691,143.56,143.52,40.23961632]
[1723775491524,0.49148691,143.56,143.48,6.08]
[1723775491525,2.4375,143.57,143.54,40.19]
[1723775491723,1.3175,143.66,143.56,40.19]
[1723775491923,3.15375217,143.65,143.55,40.19]
[1723775492120,0.49135217,143.64,143.52,40.19]
[1723775492421,0.49135217,143.63,143.52,40.19]
[1723775492627,0.49135217,143.62,143.52,40.19]
[1723775492923,2.4378,143.55,143.52,40.19]
[1723775493427,2.4377,143.56,143.52,40.19]
[1723775493721,1.3175,143.66,143.55,40.19]
[1723775493916,0.49125191,143.64,143.57,40.19]
[1723775494626,1.3175,143.66,143.57,40.19]
[1723775494819,6.08,143.68,143.55,6.08]
[1723775494820,0.04835492,143.62,143.61,2.4368]
[1723775495121,0.04835492,143.62,143.61,40.19]
[1723775495321,0.49108563,143.63,143.61,40.19]
[1723775495631,1.2729,143.75,143.62,40.19]
[1723775495921,1.2729,143.75,143.67,40.19]
[1723775496317,1.2729,143.75,143.65,40.19]
[1723775496518,0.45233189,143.74,143.65,40.19]
[1723775496921,0.45233189,143.74,143.62,6.4]
[1723775496922,2.4351,143.71,143.7,0.05252838]
[1723775497118,0.45233189,143.71,143.62,40.19]
[1723775497323,0.45233189,143.72,143.62,40.19]
[1723775497522,40.19,143.7,143.4,40.19]
[1723775497717,6.4,143.73,143.55,40.19]
[1723775497718,40.19,143.67,143.55,40.19]
[1723775497925,6.85233189,143.66,143.55,40.19]
[1723775498227,40.64233189,143.65,143.52,40.19]
[1723775498433,40.19,143.63,143.5,40.19]
[1723775498620,6.4,143.66,143.47,40.19]
[1723775498621,40.19,143.6,143.47,40.19]
[1723775498821,8.12213189,143.59,143.45,1.0]
[1723775499026,40.64233189,143.58,143.45,41.19]
[1723775499230,0.45233189,143.57,143.45,41.19]
[1723775499730,46.59,143.56,143.43,40.19]
[1723775499929,0.45233189,143.55,143.43,40.19]
[1723775500128,40.19,143.54,143.43,40.19]
[1723775500429,40.19,143.51,143.37,116.85118165]
[1723775500632,6.85233189,143.5,143.37,116.85118165]
[1723775500828,0.45233189,143.49,143.4,40.19]
[1723775501033,0.45233189,143.49,143.43,40.19]
[1723775501326,2.89123189,143.49,143.45,40.19]
[1723775501523,6.4,143.57,143.48,40.19]
[1723775501726,2.4388,143.5,143.48,40.19]
[1723775501920,0.45376676,143.49,143.48,40.19]
[1723775502921,1.2782,143.56,143.48,40.19]
[1723775503221,0.45358928,143.55,143.51,40.19]
[1723775503429,4.8698,143.73,143.54,40.19]
[1723775503625,2.515,143.68,143.58,40.19]
[1723775503833,2.515,143.68,143.54,46.59]
[1723775503834,0.45319904,143.67,143.6,40.19]
[1723775504032,2.515,143.68,143.62,40.19]
[1723775504334,0.38301473,143.67,143.6,40.19]
[1723775504529,0.04619055,143.65,143.62,0.05357315]
[1723775504831,0.04619055,143.65,143.63,40.19]
[1723775504832,0.38301473,143.64,143.63,40.19]
[1723775505632,0.04619055,143.65,143.63,40.19]
[1723775505829,6.4,143.76,143.63,40.19]
[1723775506132,2.4355,143.69,143.66,40.19]
[1723775506326,6.4,143.76,143.66,40.19]
[1723775506327,0.35286738,143.68,143.66,40.19]
[1723775506530,0.35286738,143.67,143.66,40.19]
[1723775507428,1.2804,143.77,143.72,40.19]
[1723775507629,0.35248414,143.76,143.72,40.19]
[1723775507830,0.35248414,143.75,143.72,40.19]
[1723775508030,0.35248414,143.74,143.72,40.19]
[1723775508327,1.343,143.85,143.73,40.19]
[1723775508532,1.343,143.85,143.79,40.19]
[1723775508834,1.343,143.85,143.77,40.19]
[1723775508835,2.4334,143.82,143.77,40.19]
[1723775509128,0.32475465,143.81,143.77,40.19]
[1723775509331,1.343,143.85,143.77,40.19]
[1723775509828,0.04605169,143.82,143.77,40.19]
[1723775510232,0.04605169,143.82,143.8,0.04954248]
[1723775510628,0.04605169,143.82,143.8,40.23954248]
[1723775510928,41.4216,143.96,143.81,6.4]
[1723775511130,0.2970845,143.95,143.88,40.19]
[1723775511329,2.4638,143.96,143.93,40.19]
[1723775511632,2.4321,143.9,143.88,40.19]
[1723775511840,2.4638,143.96,143.52,7.3147]
[1723775511841,2.4638,143.96,143.85,40.19]
[1723775512534,2.4638,143.96,143.88,0.04769143]
[1723775512925,2.4321,143.89,143.88,0.04769143]
[1723775513131,2.4638,143.96,143.88,0.04769143]
[1723775513733,2.4319,143.9,143.88,0.04769143]
[1723775514135,2.4319,143.9,143.88,40.23769143]
[1723775514531,2.4321,143.89,143.88,40.23769143]
[1723775514840,2.4321,143.89,143.88,0.04769143]
[1723775515831,2.4332,143.82,143.81,40.19]
[1723775516545,6.78,143.93,143.81,40.19]
[1723775516734,6.78,143.93,143.83,40.19]
[1723775517233,0.04836813,143.88,143.86,0.04893009]
[1723775517739,0.2972506,143.92,143.86,0.04893009]
[1723775517934,2.4333,143.82,143.81,40.19]
[1723775518437,40.19,143.89,143.74,27.84]
[1723775518638,7.07743,143.88,143.76,40.19]
[1723775518933,0.29743,143.87,143.76,40.19]
[1723775519134,2.4341,143.77,143.76,40.19]
[1723775519343,0.29743,143.87,143.73,40.19]
[1723775519344,0.05284912,143.83,143.73,40.19]
[1723775519536,6.78,143.82,143.73,40.19]
[1723775519841,6.78,143.82,143.75,0.05301116]
[1723775520031,0.0488668,143.79,143.75,0.05301116]
[1723775520234,2.4355,143.69,143.68,40.19]
[1723775520833,2.4355,143.69,143.64,6.78]
[1723775520834,2.4358,143.67,143.66,40.19]
[1723775521031,40.19,143.77,143.66,40.19]
[1723775521341,6.78,143.74,143.66,40.19]
[1723775521540,0.29823622,143.73,143.66,40.19]
[1723775521736,0.35073266,143.73,143.7,0.04646754]
[1723775521940,2.4351,143.71,143.7,0.04646754]
[1723775522139,2.73353234,143.71,143.7,0.04646754]
[1723775522338,0.29843234,143.71,143.63,40.19]
[1723775522535,0.29843234,143.7,143.61,40.19]
[1723775522737,0.29843234,143.69,143.58,40.19]
[1723775522940,6.78,143.68,143.58,40.19]
[1723775523234,0.29843234,143.67,143.64,40.19]
[1723775523434,0.29843234,143.68,143.59,40.19]
[1723775523640,0.29843234,143.67,143.59,40.19]
[1723775523840,0.29843234,143.66,143.62,40.19]
[1723775524035,0.29843234,143.68,143.65,40.19]
[1723775524339,1.2759,143.73,143.65,40.19]
[1723775524638,1.2695,143.82,143.72,40.19]
[1723775524841,0.29790367,143.81,143.75,40.19]
[1723775525140,6.78,143.86,143.75,40.19]
[1723775525141,0.29790367,143.85,143.75,40.19]
[1723775525334,6.78,143.86,143.75,40.19]
[1723775525335,0.29790367,143.84,143.75,40.19]
[1723775525542,0.29790367,143.85,143.78,40.19]
[1723775525738,0.0509354,143.79,143.77,0.04746433]
[1723775525943,0.29790367,143.84,143.78,40.19]
[1723775525944,2.4329,143.84,143.78,40.19]
[1723775526149,7.12,143.88,143.82,40.19]
[1723775526441,2.4329,143.85,143.82,40.19]
[1723775526636,1.2759,143.89,143.82,40.19]
[1723775526845,0.29721149,143.88,143.84,40.19]
[1723775527041,7.12,143.94,143.84,40.19]
[1723775527249,7.12,143.94,143.82,40.19]
[1723775527448,0.29712421,143.93,143.82,40.19]
[1723775527642,0.04418185,143.87,143.84,0.04891188]
[1723775528036,0.04418185,143.87,143.84,40.23891188]
[1723775528236,0.04418185,143.87,143.84,0.04891188]
[1723775528436,7.12,143.88,143.76,40.19]
[1723775528636,0.29750839,143.87,143.76,40.19]
[1723775528838,0.29750839,143.87,143.81,40.19]
[1723775529344,0.04480295,143.87,143.84,0.05135335]
[1723775529540,0.04480295,143.87,143.84,40.24135335]
[1723775529845,2.4327,143.85,143.84,40.24135335]
[1723775530040,0.04480295,143.87,143.84,40.24135335]
[1723775530941,2.4327,143.85,143.84,40.24135335]
[1723775531443,2.4326,143.86,143.84,40.24135335]
[1723775531640,0.04480295,143.87,143.84,40.24135335]
[1723775532439,0.04480295,143.87,143.86,40.19]
[1723775532748,0.29705113,143.92,143.86,40.19]
[1723775532943,1.3007,143.94,143.89,40.19]
[1723775533140,0.29674893,143.93,143.89,40.19]
[1723775533549,0.29674893,143.93,143.87,40.19]
[1723775534046,0.29674893,143.93,143.84,40.19]
[1723775534242,0.34466205,143.92,143.9,0.04915081]
[1723775534547,0.29674893,143.91,143.9,0.04915081]
[1723775534842,0.04791312,143.92,143.84,40.19]
[1723775535049,0.04791312,143.92,143.86,40.19]
[1723775535242,0.04791312,143.92,143.89,0.05188998]
[1723775535442,0.29674893,143.94,143.89,0.05188998]
[1723775535649,0.29674893,143.93,143.89,0.05188998]
[1723775535844,0.04782456,143.92,143.91,40.19]
[1723775536750,2.4317,143.91,143.9,0.04943901]
[1723775536944,2.72813692,143.91,143.9,0.04943901]
[1723775537744,0.29643692,143.91,143.83,40.19]
[1723775538051,0.04782456,143.92,143.85,40.19]
[1723775538249,2.4324,143.88,143.85,40.19]
[1723775538546,0.29643692,143.87,143.83,40.19]
[1723775538738,0.29643692,143.93,143.83,40.19]
[1723775538938,0.29643692,143.92,143.83,40.19]
[1723775539140,0.29643692,143.91,143.8,40.19]
[1723775539343,2.4327,143.85,143.84,40.23387415]
[1723775539543,121.97639211,144.07,143.84,40.23387415]
[1723775539544,2.5186,144.02,143.84,83.84632266]
[1723775539747,0.29677612,144.01,143.93,40.19]
[1723775539952,0.29677612,144.01,143.96,40.19]
[1723775540153,0.29677612,144.01,143.93,47.31]
[1723775541254,0.29677612,144.06,143.98,40.19]
[1723775541559,0.27324803,144.07,143.96,40.19]
[1723775541753,0.05082789,143.98,143.96,40.23494248]
[1723775541951,2.48142789,143.98,143.96,0.04494248]
[1723775542251,0.05082789,143.98,143.96,0.04494248]
[1723775542447,0.05082789,143.98,143.96,40.23494248]
[1723775542956,0.27327444,144.06,143.96,40.19]
[1723775543253,2.43,144.03,143.99,40.19]
[1723775543654,7.12,144.11,144.01,40.19]
[1723775543655,2.429,144.09,144.01,40.19]
[1723775543844,0.2730491,144.08,144.04,40.19]
[1723775544051,0.27293107,144.14,144.02,40.19]
[1723775544250,1.3208,144.15,144.04,40.19]
[1723775544446,0.04984036,144.06,144.04,40.19]
[1723775544848,1.3208,144.15,144.04,40.19]
[1723775545155,40.4629001,144.14,143.84,3.52156209]
[1723775545358,0.04692513,144.06,144.04,0.05336281]
[1723775545656,0.04692513,144.06,144.04,40.24336281]
[1723775545859,0.2729001,144.12,144.04,40.24336281]
[1723775546048,8.4282,144.17,144.09,40.19]
[1723775546244,2.4285,144.12,144.09,40.19]
[1723775546446,0.27275672,144.16,144.11,40.19]
[1723775546860,0.27275672,144.19,144.11,40.19]
[1723775547160,0.27275672,144.19,144.09,40.19]
[1723775547458,1.2684,144.2,144.09,40.19]
[1723775547659,0.27250967,144.19,144.12,40.24303411]
[1723775547851,0.27250967,144.19,144.14,40.19]
[1723775548048,7.12,144.21,144.17,40.19]
[1723775548346,81.65597106,144.6,144.12,0.05303411]
[1723775548347,7.12,144.29,144.19,40.19]
[1723775548546,1.2684,144.3,144.24,40.19]
[1723775548751,48.49906762,144.38,144.26,40.19]
[1723775548960,0.27145431,144.37,144.26,40.19]
[1723775549151,1.2889,144.37,144.26,40.19]
[1723775549458,8.7689,144.37,144.32,40.19]
[1723775549651,7.48,144.37,144.29,40.19]
[1723775549852,40.19,144.35,143.65,9.7453]
[1723775550058,1.2889,144.34,144.23,40.19]
[1723775550259,1.2889,144.34,144.22,40.19]
[1723775550454,1.2889,144.34,144.25,40.19]
[1723775550650,1.2889,144.34,144.32,0.05198488]
[1723775551357,7.48,144.37,144.27,40.19]
[1723775551556,7.48,144.43,144.32,40.19]
[1723775551958,47.67,144.43,144.32,40.19]
[1723775552261,47.67,144.43,144.32,0.05191607]
[1723775552458,2.4249,144.33,144.32,0.05191607]
[1723775553456,40.19,144.34,144.22,40.19]
[1723775553657,40.19,144.31,144.19,7.48]
[1723775553863,2.4268,144.22,144.19,7.48]
[1723775554056,7.48,144.28,144.17,40.19]
[1723775554763,7.48,144.28,144.14,7.48]
[1723775554764,7.48,144.28,144.15,40.19]
[1723775554967,2.4273,144.19,144.15,40.19]
[1723775555261,40.19,144.27,144.21,0.04482619]
[1723775555456,40.19,144.24,144.11,40.19]
[1723775555654,40.19,144.27,144.09,40.19]
[1723775555655,40.19,144.22,144.09,40.19]
[1723775555869,40.19,144.22,143.97,108.97637772]
[1723775555870,40.19,144.2,144.06,40.19]
[1723775556565,2.4289,144.1,144.06,40.19]
[1723775556758,7.48,144.15,144.04,40.19]
[1723775556963,7.52949294,144.14,143.99,7.48]
[1723775557259,40.19,144.12,143.99,40.19]
[1723775557459,40.19,144.12,143.97,40.19]
[1723775557664,7.86,144.14,144.02,40.19]
[1723775558164,2.5664,144.21,144.08,40.19]
[1723775558360,40.19,144.19,144.04,40.19]
[1723775558564,0.05210548,144.09,144.07,0.05247342]
[1723775559456,0.27243586,144.18,143.46,3.0160158]
[1723775559457,40.19,144.08,143.46,3.0160158]
[1723775559670,7.86,144.07,143.94,40.19]
[1723775560263,2.4308,143.98,143.94,40.19]
[1723775560466,0.04632334,143.95,143.94,40.19]
[1723775560660,0.27316954,144.06,143.94,40.19]
[1723775560867,2.4307,143.99,143.94,40.19]
[1723775561067,7.86,144.07,143.94,40.19]
[1723775561364,0.27318556,144.06,143.94,40.19]
[1723775561763,0.27318556,144.06,143.95,0.05126838]
[1723775561964,7.86,144.07,143.95,0.05126838]
[1723775562169,2.4306,143.99,143.95,0.05126838]
[1723775562365,40.19,144.05,143.95,0.05126838]
[1723775562761,0.04980476,144.01,143.92,40.19]
[1723775563774,2.4304,144.0,143.99,0.04456908]
[1723775564066,40.19,144.05,143.92,40.19]
[1723775564273,2.4316,143.94,143.92,40.19]
[1723775564473,0.05142273,143.98,143.9,40.19]
[1723775564769,7.86,144.0,143.9,40.19]
[1723775565176,7.86,144.0,143.93,0.0448374]
[1723775565362,0.05058351,143.95,143.93,0.0448374]
[1723775565562,2.4315,143.94,143.93,0.0448374]
[1723775565765,7.86,144.03,143.93,0.0448374]
[1723775565974,4.8557,144.16,143.94,40.19]
[1723775565975,40.19,144.07,143.94,40.19]
[1723775566167,2.4309,143.98,143.94,40.19]
[1723775566376,0.04677383,143.95,143.94,40.19]
[1723775566670,7.86,144.02,143.94,40.19]
[1723775566871,7.86,144.02,143.95,0.04742029]
[1723775567066,0.05332638,143.96,143.95,0.04742029]
[1723775567467,2.4306,143.99,143.95,0.04742029]
[1723775567669,0.04417104,143.97,143.95,0.04742029]
[1723775567874,4.8557,144.16,143.96,40.19]
[1723775568076,7.86,144.05,143.96,40.19]
[1723775568378,0.27319104,144.08,143.99,40.19]
[1723775568379,7.86,144.08,143.99,40.19]
[1723775568575,1.3275,144.09,144.04,40.19]
[1723775569280,1.3275,144.09,144.01,40.19]
[1723775569475,1.3275,144.09,144.05,0.05054823]
[1723775569677,2.4294,144.06,144.05,0.05054823]
[1723775569874,1.3275,144.09,144.01,40.19]
[1723775570080,9.2016,144.13,144.04,40.19]
[1723775570276,2.4289,144.09,144.04,40.19]
[1723775570482,7.86,144.13,144.06,40.19]
[1723775570683,2.4287,144.11,144.06,40.19]
[1723775570978,1.3167,144.16,144.09,40.19]
[1723775571278,3.45811918,144.28,144.14,40.19]
[1723775571482,3.45811918,144.28,144.11,40.19]
[1723775571483,0.27195426,144.27,144.19,40.19]
[1723775571676,40.19,144.3,144.19,40.19]
[1723775571877,0.2716828,144.29,144.2,0.05279185]
[1723775572286,0.2716828,144.29,144.17,8.2]
[1723775572789,0.2716828,144.29,144.23,0.05269649]
[1723775572986,2.4264,144.24,144.23,0.05269649]
[1723775573181,2.6439,144.33,144.23,0.05269649]
[1723775573381,2.4255,144.3,144.23,42.66929649]
[1723775573686,2.6439,144.33,144.26,40.19]
[1723775573885,2.425,144.33,144.27,8.2]
[1723775574186,40.19,144.41,144.29,40.19]
[1723775574491,2.425,144.33,144.29,40.19]
[1723775574685,40.19,144.41,144.29,40.19]
[1723775574989,2.4248,144.34,144.29,40.19]
[1723775575379,40.19,144.41,144.29,40.19]
[1723775575585,0.27093371,144.4,144.34,40.19]
[1723775575885,40.19,144.49,144.36,40.19]
[1723775576089,40.19,144.49,144.3,0.04438101]
[1723775576090,2.4241,144.38,144.34,40.19]
[1723775576290,40.19,144.44,144.32,8.2]
[1723775576484,2.4966,144.5,144.33,40.19]
[1723775576485,2.4238,144.4,144.33,40.19]
[1723775576688,2.4238,144.4,144.35,0.05151806]
[1723775576888,2.4238,144.4,144.36,40.19]
[1723775577104,40.19,144.48,144.35,0.05151806]
[1723775577105,40.19,144.43,144.35,0.05151806]
[1723775577390,40.19,144.48,143.81,4.0160158]
[1723775577391,40.19,144.38,144.23,40.19]
[1723775577585,40.19,144.62,144.31,40.19]
[1723775577789,106.08207612,144.82,144.31,40.19]
[1723775577790,40.19,144.45,144.31,40.19]
[1723775578183,0.27076521,144.44,144.31,40.19]
[1723775578388,3.44949566,144.47,144.26,40.19]
[1723775578389,40.19,144.47,144.34,40.19]
[1723775578590,8.2,144.43,144.34,40.19]
[1723775578888,40.19,144.47,144.34,40.19]
[1723775579091,8.2,144.46,144.34,40.19]
[1723775579287,0.04388617,144.39,144.37,0.04593643]
[1723775580192,0.04388617,144.39,144.26,40.19]
[1723775580193,2.4234,144.42,144.36,40.19]
[1723775580393,8.2,144.43,144.36,40.19]
[1723775580394,2.4237,144.4,144.36,40.19]
[1723775580591,8.2,144.43,144.33,40.19]
[1723775580895,8.2,144.43,144.37,0.04947891]
[1723775580896,0.05087458,144.39,144.37,0.04947891]
[1723775581188,2.4242,144.38,144.37,0.04947891]
[1723775581794,8.2,144.38,144.28,40.19]
[1723775582188,2.4249,144.33,144.28,40.19]
[1723775582392,8.2,144.38,144.28,40.19]
[1723775582694,2.4245,144.35,144.3,40.19]
[1723775583002,67.93,144.48,144.33,40.19]
[1723775583292,1.3463,144.49,144.36,42.6143]
[1723775583494,1.3463,144.49,144.36,40.19]
[1723775583696,1.3463,144.49,144.39,40.19]
[1723775583999,2.46824112,144.44,144.39,40.19]
[1723775584296,0.04514112,144.44,144.39,40.19]
[1723775584898,2.46814112,144.44,144.43,0.05048074]
[1723775585100,2.73844085,144.44,144.43,0.05048074]
[1723775585692,2.4235,144.42,144.36,40.19]
[1723775586189,0.04514112,144.44,144.33,40.19]
[1723775586496,8.18,144.43,144.42,0.05061489]
[1723775586696,10.87365471,144.43,144.42,0.05061489]
[1723775587096,2.69365471,144.43,144.42,0.05061489]
[1723775587297,2.4234,144.42,144.39,40.19]
[1723775587695,0.04834003,144.44,144.36,40.19]
[1723775588102,0.04834003,144.44,144.41,0.05263394]
[1723775588405,0.27037277,144.46,144.41,0.05263394]
[1723775588897,0.04827314,144.44,144.41,40.24263394]
[1723775589093,2.4233,144.43,144.41,40.24263394]
[1723775589397,0.27032612,144.42,144.41,0.05263394]
[1723775589599,0.04827314,144.44,144.41,0.05263394]
[1723775589897,0.04827314,144.44,144.41,40.24263394]
[1723775590294,0.04827314,144.44,144.41,0.05263394]
[1723775590691,2.4234,144.42,144.41,0.05263394]
[1723775590896,2.69378461,144.42,144.41,0.05263394]
[1723775591100,2.4234,144.42,144.41,0.05263394]
[1723775591796,2.69380852,144.42,144.41,0.05263394]
[1723775592201,2.4234,144.42,144.41,0.05263394]
[1723775592603,0.04827314,144.44,144.41,40.24263394]
[1723775593709,2.4234,144.42,144.41,0.05263394]
[1723775595494,1.2787,144.43,144.33,40.19]
[1723775596099,1.2787,144.43,144.35,40.19]
[1723775596503,1.2787,144.43,144.28,3.51939058]
[1723775596504,1.2787,144.43,144.29,0.3231]
[1723775596695,1.2787,144.43,144.35,40.19]
[1723775597002,0.05292898,144.4,144.38,0.0468647]
[1723775597204,2.4239,144.39,144.38,0.0468647]
[1723775597502,40.19,144.42,144.3,40.19]
[1723775597707,40.19,144.39,144.37,0.04454528]
[1723775598007,8.18,144.38,144.23,40.19]
[1723775598206,40.19,144.35,144.23,40.19]
[1723775599100,40.19,144.33,144.21,40.19]
[1723775599404,1.3052,144.32,144.21,40.19]
[1723775599604,0.04383162,144.3,144.28,0.05289293]
[1723775600203,0.04383162,144.3,143.56,3.0160158]
[1723775600204,67.93383162,144.3,143.96,27.7]
[1723775600404,40.19,144.26,144.12,40.19]
[1723775600718,2.428,144.15,144.12,40.19]
[1723775600912,40.19,144.26,144.12,40.19]
[1723775601306,31.24059089,144.3,144.15,40.19]
[1723775601307,8.52,144.25,144.15,40.19]
[1723775601609,0.04509457,144.2,144.18,0.05162366]
[1723775602414,48.71,144.24,144.12,40.19]
[1723775602712,0.04933156,144.2,144.18,0.0475686]
[1723775603107,2.4272,144.19,144.18,0.0475686]
[1723775603410,0.04933156,144.2,144.1,40.19]
[1723775603614,8.54,144.19,144.1,40.19]
[1723775604210,8.54,144.19,144.07,40.19]
[1723775604403,0.27244874,144.18,144.07,40.19]
[1723775604910,40.23635694,144.16,144.13,0.04813456]
[1723775605108,40.19,144.14,144.01,40.19]
[1723775605814,2.4296,144.06,144.01,40.19]
[1723775606014,8.54,144.11,144.01,40.19]
[1723775606416,8.54,144.11,144.02,0.04726627]
[1723775606713,0.04376905,144.05,144.02,0.04726627]
[1723775606916,8.54,144.11,144.01,40.19]
[1723775607313,0.04565256,144.05,144.02,0.04855432]
[1723775607513,1.2172,144.15,144.04,40.19]
[1723775607514,8.54,144.12,144.04,40.19]
[1723775607711,1.2172,144.15,144.04,40.19]
[1723775607912,0.04872563,144.05,144.04,40.19]
[1723775608119,8.54,144.13,144.04,40.19]
[1723775608420,0.05200319,144.06,144.04,40.19]